Workbook

Sheet 2023見積書- 3DVisual
C1: 御見積書(仮)
C2: ------ o0o ------
L4: 見積日： | M4: =TODAY() -> 2023-06-05
L5: 見積番号：
E7: 御中 | K7: 株式会社ＯＳＣＡＲ Ｊ.V
K9: Unit 506, Waseco Building
K10: 10 Pho Quang St, Tan Binh Dist, HCMC, VIET NAM
B11: 下記の通り御見積申し上げます。 | K11: TEL: | L11: +84 2836 200 493
K12: FAX: | L12: +84 2836 200 410
B14: 合計金額 | C14: =$M$37 -> 0 | K14: 口振込口座 | M14: Vietcombank
K15: 口座番号 | M15: 0531002538522
E16: （消費税含） | K16: 口座名義 | M16: (株)OSCAR J.V
A20: No. | B20: 建築物の用途 | C20: 数棟 | D20: パース | E20: 品質 | F20: 納品 | G20: 追加事項 | J20: 単価 | K20: 追加費用 | L20: 数量（枚） | M20: 金額(**)
G21: 視点 | H21: 新規モデル | I21: 納期短縮
A22: (1) | B22: (2) | C22: (3) | D22: (4) | E22: (5) | F22: (6) | G22: (7) | H22: (8) | I22: (9) | J22: (10) | K22: (11) | L22: (12) | M22: (13)
J23: =IF(A23="","",SUMIFS(リスト表!$Q$25:$Q$50,リスト表!M25:$M$50,'2023見積書- 3DVisual'!B23,リスト表!N25:$N$50,'2023見積書- 3DVisual'!E23,リスト表!O25:$O$50,'2023見積書- 3DVisual'!F23)) ->  | K23: =IF(A23="","",J23*IF(G23="無し",1,LEFT(G23,1))+(リスト表!$Q$3*'2023見積書- 3DVisual'!H23)+(VLOOKUP(I23,リスト表!$H$2:$J$5,3,0))) ->  | L23: 2 | M23: =IF(A23="","",(J23+K23)*L23) -> 
J24: =IF(A24="","",SUMIFS(リスト表!$Q$25:$Q$50,リスト表!M26:$M$50,'2023見積書- 3DVisual'!B24,リスト表!N26:$N$50,'2023見積書- 3DVisual'!E24,リスト表!O26:$O$50,'2023見積書- 3DVisual'!F24)) ->  | K24: =IF(A24="","",J24*IF(G24="無し",1,LEFT(G24,1))+(リスト表!$Q$3*'2023見積書- 3DVisual'!H24)+(VLOOKUP(I24,リスト表!$H$2:$J$5,3,0))) ->  | M24: =IF(A24="","",(J24+K24)*L24) -> 
J25: =IF(A25="","",SUMIFS(リスト表!$Q$25:$Q$50,リスト表!M27:$M$50,'2023見積書- 3DVisual'!B25,リスト表!N27:$N$50,'2023見積書- 3DVisual'!E25,リスト表!O27:$O$50,'2023見積書- 3DVisual'!F25)) ->  | K25: =IF(A25="","",J25*IF(G25="無し",1,LEFT(G25,1))+(リスト表!$Q$3*'2023見積書- 3DVisual'!H25)+(VLOOKUP(I25,リスト表!$H$2:$J$5,3,0))) -> 
J26: =IF(A26="","",SUMIFS(リスト表!$Q$25:$Q$50,リスト表!M28:$M$50,'2023見積書- 3DVisual'!B26,リスト表!N28:$N$50,'2023見積書- 3DVisual'!E26,リスト表!O28:$O$50,'2023見積書- 3DVisual'!F26)) ->  | K26: =IF(A26="","",J26*IF(G26="無し",1,LEFT(G26,1))+(リスト表!$Q$3*'2023見積書- 3DVisual'!H26)+(VLOOKUP(I26,リスト表!$H$2:$J$5,3,0))) -> 
J27: =IF(A27="","",SUMIFS(リスト表!$Q$25:$Q$50,リスト表!M29:$M$50,'2023見積書- 3DVisual'!B27,リスト表!N29:$N$50,'2023見積書- 3DVisual'!E27,リスト表!O29:$O$50,'2023見積書- 3DVisual'!F27)) ->  | K27: =IF(A27="","",J27*IF(G27="無し",1,LEFT(G27,1))+(リスト表!$Q$3*'2023見積書- 3DVisual'!H27)+(VLOOKUP(I27,リスト表!$H$2:$J$5,3,0))) -> 
J28: =IF(A28="","",SUMIFS(リスト表!$Q$25:$Q$50,リスト表!M30:$M$50,'2023見積書- 3DVisual'!B28,リスト表!N30:$N$50,'2023見積書- 3DVisual'!E28,リスト表!O30:$O$50,'2023見積書- 3DVisual'!F28)) ->  | K28: =IF(A28="","",J28*IF(G28="無し",1,LEFT(G28,1))+(リスト表!$Q$3*'2023見積書- 3DVisual'!H28)+(VLOOKUP(I28,リスト表!$H$2:$J$5,3,0))) -> 
J29: =IF(A29="","",SUMIFS(リスト表!$Q$25:$Q$50,リスト表!M31:$M$50,'2023見積書- 3DVisual'!B29,リスト表!N31:$N$50,'2023見積書- 3DVisual'!E29,リスト表!O31:$O$50,'2023見積書- 3DVisual'!F29)) ->  | K29: =IF(A29="","",J29*IF(G29="無し",1,LEFT(G29,1))+(リスト表!$Q$3*'2023見積書- 3DVisual'!H29)+(VLOOKUP(I29,リスト表!$H$2:$J$5,3,0))) -> 
J30: =IF(A30="","",SUMIFS(リスト表!$Q$25:$Q$50,リスト表!M32:$M$50,'2023見積書- 3DVisual'!B30,リスト表!N32:$N$50,'2023見積書- 3DVisual'!E30,リスト表!O32:$O$50,'2023見積書- 3DVisual'!F30)) ->  | K30: =IF(A30="","",J30*IF(G30="無し",1,LEFT(G30,1))+(リスト表!$Q$3*'2023見積書- 3DVisual'!H30)+(VLOOKUP(I30,リスト表!$H$2:$J$5,3,0))) -> 
J31: =IF(A31="","",SUMIFS(リスト表!$Q$25:$Q$50,リスト表!M33:$M$50,'2023見積書- 3DVisual'!B31,リスト表!N33:$N$50,'2023見積書- 3DVisual'!E31,リスト表!O33:$O$50,'2023見積書- 3DVisual'!F31)) ->  | K31: =IF(A31="","",J31*IF(G31="無し",1,LEFT(G31,1))+(リスト表!$Q$3*'2023見積書- 3DVisual'!H31)+(VLOOKUP(I31,リスト表!$H$2:$J$5,3,0))) -> 
A35: 備考 | I35: 小計 | M35: =SUM($M$23:M32) -> 0
I36: 消費税(*) | K36: 0.1 | M36: =M35*K36 -> 0
I37: 合計金額(**) | M37: =SUM($M$35:M36) -> 0
I38: (*) ベトナムの国内は消費税（VAT）が掛かる、当年指導の通り変更する可能
I39: (**) 金額は参照値で、詳細単価についてご連絡の程よろしくお願い致します。

Sheet 2023見積書- 木造住宅
C1: 御見積書(仮)
C2: ------ o0o ------
J4: 見積日： | K4: =TODAY() -> 2023-06-05
J5: 見積番号：
E7: 御中 | I7: 株式会社ＯＳＣＡＲ Ｊ.V
I9: Unit 506, Waseco Building
I10: 10 Pho Quang St, Tan Binh Dist, HCMC, VIET NAM
B11: 下記の通り御見積申し上げます。 | I11: TEL: | J11: +84 2836 200 493
I12: FAX: | J12: +84 2836 200 410
B14: 合計金額 | C14: =$K$37 -> 0 | I14: 口振込口座 | K14: Vietcombank
I15: 口座番号 | K15: 0531002538522
E16: （消費税含） | I16: 口座名義 | K16: (株)OSCAR J.V
A20: No. | B20: 建築物の用途 | C20: 数棟 | D20: 委託業務内容 | H20: 設定工数 | I20: 単価 | J20: 件数 | K20: 金額(**)
A22: (1) | B22: (2) | C22: (3) | D22: (4) | H22: (5) | I22: (6) | J22: (7) | K22: (8)
H23: =IF(A23="","",VLOOKUP(D23,リスト表!$L$46:$N$52,2,0)) ->  | I23: =IF(A23="","",VLOOKUP(D23,リスト表!$L$46:$N$52,3,0)) ->  | K23: =IF(A23="","",I23*J23*C23) -> 
H24: =IF(A24="","",VLOOKUP(D24,リスト表!$L$46:$N$52,2,0)) ->  | I24: =IF(A24="","",VLOOKUP(D24,リスト表!$L$46:$N$52,3,0)) ->  | K24: =IF(A24="","",I24*J24) -> 
H25: =IF(A25="","",VLOOKUP(D25,リスト表!$L$46:$N$52,2,0)) ->  | I25: =IF(A25="","",VLOOKUP(D25,リスト表!$L$46:$N$52,3,0)) -> 
H26: =IF(A26="","",VLOOKUP(D26,リスト表!$L$46:$N$52,2,0)) ->  | I26: =IF(A26="","",VLOOKUP(D26,リスト表!$L$46:$N$52,3,0)) -> 
H27: =IF(A27="","",VLOOKUP(D27,リスト表!$L$46:$N$52,2,0)) ->  | I27: =IF(A27="","",VLOOKUP(D27,リスト表!$L$46:$N$52,3,0)) -> 
H28: =IF(A28="","",VLOOKUP(D28,リスト表!$L$46:$N$52,2,0)) ->  | I28: =IF(A28="","",VLOOKUP(D28,リスト表!$L$46:$N$52,3,0)) -> 
H29: =IF(A29="","",VLOOKUP(D29,リスト表!$L$46:$N$52,2,0)) ->  | I29: =IF(A29="","",VLOOKUP(D29,リスト表!$L$46:$N$52,3,0)) -> 
H30: =IF(A30="","",VLOOKUP(D30,リスト表!$L$46:$N$52,2,0)) ->  | I30: =IF(A30="","",VLOOKUP(D30,リスト表!$L$46:$N$52,3,0)) -> 
H31: =IF(A31="","",VLOOKUP(D31,リスト表!$L$46:$N$52,2,0)) ->  | I31: =IF(A31="","",VLOOKUP(D31,リスト表!$L$46:$N$52,3,0)) -> 
A35: 備考 | G35: 小計 | K35: =SUM($K$23:K32) -> 0
G36: 消費税(*) | I36: 0.1 | K36: =K35*I36 -> 0
G37: 合計金額(**) | K37: =SUM($K$35:K36) -> 0
G38: (*) ベトナムの国内は消費税（VAT）が掛かる、当年指導の通り変更する可能
G39: (**) 金額は参照値で、詳細単価についてご連絡の程よろしくお願い致します。

Sheet リスト表 (hidden)
A1: 建築物の用途 | C1: 外観・内観 | D1: プラン | E1: 納品 | F1: 削減 | G1: 0.1 | H1: 納期短縮 | J1: 5000 | M1: 2500 | N1: 23000 | O1: 1.1 | P1: 1.2 | R1: 削減 | S1: 0.1 | T1: 件数 | U1: 割引率
A2: 住宅 | B2: 無し | C2: 外観 | D2: BASIC | E2: CGパース | F2: 1視点追加 | G2: 0.05 | H2: 無し | I2: 5 営業日 | J2: 0 | N2: 170 | P2: 5000 | R2: 外観・内観 | S2: 0.05 | T2: 50 | U2: 0.1
A3: 連棟 | B3: 数棟 | C3: 内観 | D3: PREMIUM | E3: パノラマURL | F3: 2視点追加 | G3: =$G$1+G2 -> 0.15 | H3: 1日短縮 | I3: 4 営業日 | J3: =$J$1*LEFT(H3,1) -> 5000 | M3: モデル | P3: =7*$N$1*$O$1/$N$2 -> 1041.764706 | Q3: =IF(P3="","",P3*$P$1) -> 1250.117647 | R3: 外観 | S3: =$G$1+S2 -> 0.15 | T3: 100 | U3: 0.15
D4: PRO | E4: パノラマ写真 | F4: 3視点追加 | G4: =$G$1+G3 -> 0.25 | H4: 2日短縮 | I4: 3 営業日 | J4: =$J$1*LEFT(H4,1) -> 10000 | L4: 【OSCAR】企画業務 不動産用3D 外観 | M4: 住宅 | N4: BASIC | O4: =$E$2 -> CGパース | P4: =IF($L4="","",INDEX(#REF!,MATCH($L4,#REF!,0))) ->  | Q4: =IF(P4="","",P4*$P$1) ->  | R4: 内観 | S4: =$G$1+S3 -> 0.25 | T4: 150 | U4: 0.2
E5: アニメーション | F5: 4視点追加 | G5: 0.35 | H5: 3日短縮 | I5: 2 営業日 | J5: 15000 | L5: 【OSCAR】企画業務 不動産用3D 外観 | M5: 住宅 | N5: BASIC | O5: パノラマURL | P5: =IF($L5="","",INDEX(#REF!,MATCH($L5,#REF!,0))) ->  | Q5: =IF(P5="","",P5*$P$1) -> 
F6: 5視点追加 | G6: 0.45 | M6: 住宅 | N6: PREMIUM | O6: =$E$2 -> CGパース | P6: 25000 | Q6: 30000
F7: 無し | M7: 住宅 | N7: PREMIUM | O7: パノラマURL | P7: 25000 | Q7: 30000
L8: 【68AM】 企画業務 P-アイレベルパース―外観戸建 | M8: 住宅 | N8: PRO | O8: =$E$2 -> CGパース | P8: =IF($L8="","",INDEX(#REF!,MATCH($L8,#REF!,0))) ->  | Q8: =IF(P8="","",(P8-$P$2)*$P$1) -> 
L9: 【68AM】 企画業務 P-不動産用3D 外観 | M9: 住宅 | N9: PRO | O9: パノラマURL | P9: =IF($L9="","",INDEX(#REF!,MATCH($L9,#REF!,0))) ->  | Q9: =P9 -> 
L10: 【OSCAR】企画業務 不動産用3D 外観_連棟 | M10: 連棟 | N10: BASIC | O10: =$E$2 -> CGパース | P10: =IF($L10="","",INDEX(#REF!,MATCH($L10,#REF!,0))) -> 
L11: 【OSCAR】企画業務 不動産用3D 外観_連棟 | M11: 連棟 | N11: BASIC | O11: パノラマURL | P11: =IF($L11="","",INDEX(#REF!,MATCH($L11,#REF!,0))) -> 
M12: 連棟 | N12: PREMIUM | O12: =$E$2 -> CGパース | P12: 25000 | Q12: 30000
E13: 2D写真 | M13: 連棟 | N13: PREMIUM | O13: パノラマURL | P13: 25000 | Q13: 30000
L14: 【68AM】 企画業務 P-アイレベル＿連棟パース―外観 | M14: 連棟 | N14: PRO | O14: =$E$2 -> CGパース | P14: =IF($L14="","",INDEX(#REF!,MATCH($L14,#REF!,0))) ->  | Q14: =IF(P14="","",(P14-$P$2)*$P$1) -> 
L15: 【68AM】 企画業務 P-不動産用3D 外観 | M15: 連棟 | N15: PRO | O15: パノラマURL | P15: =IF($L15="","",INDEX(#REF!,MATCH($L15,#REF!,0))) ->  | Q15: =P15 -> 
L16: 【OSCAR】企画業務 不動産用3D 変更 | M16: 住宅 | N16: BASIC | O16: =$E$2 -> CGパース | P16: =IF($L16="","",INDEX(#REF!,MATCH($L16,#REF!,0))) -> 
L17: 【OSCAR】企画業務 不動産用3D 変更 | M17: 住宅 | N17: BASIC | O17: パノラマURL | P17: =IF($L17="","",INDEX(#REF!,MATCH($L17,#REF!,0))) -> 
R22: plus
R23: 0.1
K25: 2023-05-10 | L25: 【OSCAR】企画業務 不動産用3D 外観 | M25: 住宅 | N25: BASIC | O25: パノラマ写真 | P25: =(R25*$R$23)+R25 -> 22000 | Q25: =(S25*$R$23)+S25 -> 26400 | R25: 20000 | S25: 24000
M26: 住宅 | N26: PREMIUM | O26: パノラマ写真 | P26: =(R26*$R$23)+R26 -> 27500 | Q26: =(S26*$R$23)+S26 -> 33000 | R26: 25000 | S26: 30000
L27: 【68AM】 企画業務 P-アイレベルパース―外観戸建 | M27: 住宅 | N27: PRO | O27: パノラマ写真 | P27: 38240.4 | Q27: 39288.48 | R27: 34764 | S27: 35716.8
L28: 【OSCAR】企画業務 不動産用3D 外観_連棟 | M28: 連棟 | N28: BASIC | O28: パノラマ写真 | P28: 22000 | Q28: 26400 | R28: 20000 | S28: 24000
M29: 連棟 | N29: PREMIUM | O29: パノラマ写真 | P29: 27500 | Q29: 33000 | R29: 25000 | S29: 30000
L30: 【68AM】 企画業務 P-アイレベル＿連棟パース―外観 | M30: 連棟 | N30: PRO | O30: パノラマ写真 | P30: 46425.5 | Q30: 49110.6 | R30: 42205 | S30: 44646
L31: 【OSCAR】企画業務 不動産用3D 変更 | M31: 住宅 | N31: BASIC | O31: パノラマ写真 | P31: 11000 | Q31: 13200 | R31: 10000 | S31: 12000
R33: plus
R34: 0.2
L36: 【OSCAR】企画業務 不動産用3D 外観 | M36: 住宅 | N36: BASIC | O36: アニメーション | P36: =(R36*$R$34)+R36 -> 24000 | Q36: =(S36*$R$34)+S36 -> 28800 | R36: 20000 | S36: 24000
M37: 住宅 | N37: PREMIUM | O37: アニメーション | P37: =(R37*$R$34)+R37 -> 30000 | Q37: =(S37*$R$34)+S37 -> 36000 | R37: 25000 | S37: 30000
L38: 【68AM】 企画業務 P-不動産用3D 外観 | M38: 住宅 | N38: PRO | O38: アニメーション | P38: 80364 | Q38: 80364 | R38: 66970 | S38: 66970
L39: 【OSCAR】企画業務 不動産用3D 外観_連棟 | M39: 連棟 | N39: BASIC | O39: アニメーション | P39: 24000 | Q39: 28800 | R39: 20000 | S39: 24000
M40: 連棟 | N40: PREMIUM | O40: アニメーション | P40: 30000 | Q40: 36000 | R40: 25000 | S40: 30000
L41: 【68AM】 企画業務 P-不動産用3D 外観 | M41: 連棟 | N41: PRO | O41: アニメーション | P41: 80364 | Q41: 80364 | R41: 66970 | S41: 66970
L42: 【OSCAR】企画業務 不動産用3D 変更 | M42: 住宅 | N42: BASIC | O42: アニメーション | P42: 12000 | Q42: 14400 | R42: 10000 | S42: 12000
L46: 電気配線図 新規 | M46: 3 | N46: =M46*$M$1 -> 7500
L47: パネル図 新規入力 | M47: 18 | N47: =M47*$M$1 -> 45000
L48: 構造図 構造計算書/UA値計算書 | M48: 5 | N48: 12500
L49: 展開図 | M49: 6 | N49: 15000
L50: 積算 外部・内部積算 | M50: 7 | N50: 17500
L51: 大東建託_パネル図 大東新規入力 | M51: 56 | N51: 140000
L52: 新規入力（データ無） | M52: 6 | N52: 15000
